[Event "Championnat d'Europe Rapide"]
[Date "2024.12.07"]
[White "Sargissian, Gabriel"]
[Black "Pancevski, Filip"]
[WhiteElo "2628"]
[BlackElo "2420"]
[Round "3.11"]
[Result "1-0"]
[TimeControl "900+10"]

1. Nf3 {[%emt 00:00:05] [%clk 00:15:11]} Nf6 {[%emt 00:00:05] [%clk 00:15:17]}
2. g3 {[%emt 00:00:02] [%clk 00:15:19]} g6 {[%emt 00:00:01] [%clk 00:15:26]} 3.
Bg2 {[%emt 00:00:02] [%clk 00:15:27]} Bg7 {[%emt 00:00:01] [%clk 00:15:35]} 4.
O-O {[%emt 00:00:02] [%clk 00:15:34]} O-O {[%emt 00:00:03] [%clk 00:15:43]} 5.
d4 {[%emt 00:00:05] [%clk 00:15:39]} d6 {[%emt 00:00:02] [%clk 00:15:51]} 6. c4
{[%emt 00:00:02] [%clk 00:15:46]} Nbd7 {[%emt 00:00:07] [%clk 00:15:54]} 7. Nc3
{[%emt 00:00:03] [%clk 00:15:53]} e5 {[%emt 00:00:01] [%clk 00:16:03]} 8. h3
{[%emt 00:00:05] [%clk 00:15:59]} Re8 {[%emt 00:00:09] [%clk 00:16:04]} 9. e4
{[%emt 00:00:15] [%clk 00:15:53]} a5 {[%emt 00:00:27] [%clk 00:15:48]} 10. Re1
{[%emt 00:00:15] [%clk 00:15:48]} exd4 {[%emt 00:00:03] [%clk 00:15:54]} 11.
Nxd4 {[%emt 00:00:03] [%clk 00:15:55]} Nc5 {[%emt 00:00:02] [%clk 00:16:03]} 12.
Rb1 {[%emt 00:00:17] [%clk 00:15:48]} a4 {[%emt 00:00:30] [%clk 00:15:43]} 13.
b4 {[%emt 00:00:35] [%clk 00:15:23]} axb3 {[%emt 00:00:02] [%clk 00:15:51]} 14.
axb3 {[%emt 00:00:02] [%clk 00:15:32]} c6 {[%emt 00:00:54] [%clk 00:15:06]} 15.
Bf4 {[%emt 00:00:31] [%clk 00:15:10]} Nh5 {[%emt 00:00:04] [%clk 00:15:12]} 16.
Be3 {[%emt 00:00:05] [%clk 00:15:16]} Nf6 {[%emt 00:00:02] [%clk 00:15:20]} 17.
Qc2 {[%emt 00:01:12] [%clk 00:14:13]} Qe7 {[%emt 00:00:21] [%clk 00:15:10]} 18.
Rbd1 {[%emt 00:03:19] [%clk 00:11:04]} Qc7 {[%emt 00:01:45] [%clk 00:13:35]} 19.
Bf4 {[%emt 00:03:05] [%clk 00:08:09]} Na6 {[%emt 00:04:51] [%clk 00:08:54]} 20.
Qd2 {[%emt 00:00:38] [%clk 00:07:40]} Nd7 {[%emt 00:00:14] [%clk 00:08:51]} 21.
Bh6 {[%emt 00:01:03] [%clk 00:06:46]} Bh8 {[%emt 00:00:09] [%clk 00:08:51]} 22.
Nf5 {[%emt 00:00:22] [%clk 00:06:35]} Re6 {[%emt 00:00:59] [%clk 00:08:02]} 23.
Nd4 {[%emt 00:01:09] [%clk 00:05:36]} Re8 {[%emt 00:00:01] [%clk 00:08:11]} 24.
Nf5 {[%emt 00:00:54] [%clk 00:04:52]} Re6 {[%emt 00:00:01] [%clk 00:08:20]} 25.
Ne3 {[%emt 00:00:26] [%clk 00:04:36]} Ndc5 {[%emt 00:01:26] [%clk 00:07:04]} 26.
Rb1 {[%emt 00:00:49] [%clk 00:03:58]} Qa5 {[%emt 00:01:12] [%clk 00:06:02]} 27.
Rec1 {[%emt 00:00:22] [%clk 00:03:45]} Nb4 {[%emt 00:00:16] [%clk 00:05:57]} 28.
h4 {[%emt 00:02:39] [%clk 00:01:16]} Ncd3 {[%emt 00:01:39] [%clk 00:04:28]} 29.
Rd1 {[%emt 00:00:22] [%clk 00:01:03]} Qe5 {[%emt 00:00:06] [%clk 00:04:32]} 30.
Na4 {[%emt 00:00:16] [%clk 00:00:57]} Qa5 {[%emt 00:00:44] [%clk 00:03:58]} 31.
Nc2 {[%emt 00:00:16] [%clk 00:00:52]} Nxc2 {[%emt 00:02:26] [%clk 00:01:41]} 32.
Qxc2 {[%emt 00:00:06] [%clk 00:00:56]} Nc5 {[%emt 00:00:26] [%clk 00:01:25]} 33.
Bd2 {[%emt 00:00:14] [%clk 00:00:53]} Qc7 {[%emt 00:00:22] [%clk 00:01:13]} 34.
Nxc5 {[%emt 00:00:07] [%clk 00:00:56]} dxc5 {[%emt 00:00:01] [%clk 00:01:22]}
35. Be3 {[%emt 00:00:02] [%clk 00:01:04]} Qa5 {[%emt 00:00:35] [%clk 00:00:56]}
36. Rd3 {[%emt 00:00:25] [%clk 00:00:49]} Re8 {[%emt 00:00:06] [%clk 00:01:00]}
37. Rbd1 {[%emt 00:00:04] [%clk 00:00:56]} Bg4 {[%clk 00:01:09]} 38. f3 {[%emt
00:00:28] [%clk 00:00:38]} Be6 {[%emt 00:00:01] [%clk 00:01:18]} 39. Kh2 {[%emt
00:00:15] [%clk 00:00:32]} Bg7 {[%emt 00:00:30] [%clk 00:00:58]} 40. Bh3 {[%emt
00:00:06] [%clk 00:00:36]} Bxh3 {[%emt 00:00:18] [%clk 00:00:51]} 41. Kxh3
{[%emt 00:00:01] [%clk 00:00:45]} Qb6 {[%emt 00:00:05] [%clk 00:00:56]} 42. Qf2
{[%emt 00:00:10] [%clk 00:00:44]} Bf8 {[%emt 00:00:17] [%clk 00:00:49]} 43. Qb2
{[%emt 00:00:21] [%clk 00:00:34]} Bg7 {[%emt 00:00:03] [%clk 00:00:56]} 44. Qd2
{[%emt 00:00:14] [%clk 00:00:30]} h5 {[%emt 00:00:06] [%clk 00:01:00]} 45. Bh6
{[%emt 00:00:15] [%clk 00:00:25]} Bd4 {[%emt 00:00:27] [%clk 00:00:43]} 46. Qf4
{[%emt 00:00:02] [%clk 00:00:33]} Re6 {[%emt 00:00:30] [%clk 00:00:22]} 47. g4
{[%emt 00:00:06] [%clk 00:00:37]} hxg4+ {[%emt 00:00:05] [%clk 00:00:28]} 48.
Qxg4 {[%emt 00:00:02] [%clk 00:00:45]} Ra3 {[%emt 00:00:21] [%clk 00:00:16]} 49.
Rb1 {[%emt 00:00:30] [%clk 00:00:25]} Qc7 {[%emt 00:00:09] [%clk 00:00:18]} 50.
Bf4 {[%emt 00:00:05] [%clk 00:00:29]} Be5 {[%clk 00:00:27]} 51. Bxe5 {[%emt
00:00:09] [%clk 00:00:30]} Qxe5 {[%clk 00:00:37]} 52. Rbd1 {[%emt 00:00:02]
[%clk 00:00:38]} Re8 {[%emt 00:00:23] [%clk 00:00:25]} 53. Qg5 {[%emt 00:00:08]
[%clk 00:00:40]} Qxg5 {[%emt 00:00:16] [%clk 00:00:20]} 54. hxg5 {[%emt
00:00:01] [%clk 00:00:48]} b5 {[%clk 00:00:29]} 55. Kg4 {[%emt 00:00:08] [%clk
00:00:50]} Rb8 {[%emt 00:00:10] [%clk 00:00:30]} 56. Kf4 {[%emt 00:00:05] [%clk
00:00:55]} Re8 {[%emt 00:00:03] [%clk 00:00:37]} 57. Re3 {[%emt 00:00:21] [%clk
00:00:43]} bxc4 {[%emt 00:00:16] [%clk 00:00:32]} 58. bxc4 {[%clk 00:00:52]} Ra4
{[%clk 00:00:42]} 59. Rc3 {[%emt 00:00:05] [%clk 00:00:57]} Re6 {[%emt 00:00:05]
[%clk 00:00:47]} 60. Rd8+ {[%emt 00:00:05] [%clk 00:01:02]} Kg7 {[%emt 00:00:02]
[%clk 00:00:55]} 61. Rb3 {[%emt 00:00:05] [%clk 00:01:07]} Rb4 {[%emt 00:00:31]
[%clk 00:00:34]} 62. Ra3 {[%emt 00:00:01] [%clk 00:01:15]} Rb7 {[%emt 00:00:14]
[%clk 00:00:30]} 63. Raa8 {[%emt 00:00:01] [%clk 00:01:24]} f6 {[%clk 00:00:40]}
64. Rg8+ {[%emt 00:00:07] [%clk 00:01:27]} Kh7 {[%emt 00:00:04] [%clk 00:00:46]}
65. Rh8+ {[%emt 00:00:20] [%clk 00:01:16]} Kg7 {[%clk 00:00:55]} 66. Rag8+
{[%emt 00:00:12] [%clk 00:01:13]} Kf7 {[%emt 00:00:01] [%clk 00:01:05]} 67. Rf8+
{[%emt 00:00:30] [%clk 00:00:54]} Kg7 {[%emt 00:00:01] [%clk 00:01:14]} 68.
Rhg8+ {[%emt 00:00:11] [%clk 00:00:53]} Kh7 {[%emt 00:00:01] [%clk 00:01:22]}
69. gxf6 {[%emt 00:00:04] [%clk 00:00:59]} Rxf6+ {[%emt 00:00:05] [%clk
00:01:28]} 70. Rxf6 {[%emt 00:00:02] [%clk 00:01:06]} 1-0

[Site "Europe Echecs"]

[Event "Championnat d'Europe Rapide"]
[Date "2024.12.07"]
[White "Arnaudov, G. Petar"]
[Black "Mamedov, Rauf"]
[WhiteElo "2401"]
[BlackElo "2656"]
[Round "3.12"]
[Result "1-0"]
[TimeControl "900+10"]

1. Nf3 {[%emt 00:00:04] [%clk 00:15:16]} g6 {[%emt 00:00:03] [%clk 00:15:18]} 2.
d4 {[%emt 00:00:03] [%clk 00:15:23]} Nf6 {[%emt 00:00:06] [%clk 00:15:22]} 3.
Bg5 {[%emt 00:00:03] [%clk 00:15:29]} Bg7 {[%emt 00:00:04] [%clk 00:15:29]} 4.
e3 {[%emt 00:00:06] [%clk 00:15:33]} d6 {[%emt 00:00:04] [%clk 00:15:35]} 5.
Nbd2 {[%emt 00:00:02] [%clk 00:15:40]} h6 {[%emt 00:00:03] [%clk 00:15:42]} 6.
Bh4 {[%emt 00:00:02] [%clk 00:15:49]} c5 {[%emt 00:00:14] [%clk 00:15:37]} 7.
dxc5 {[%emt 00:00:20] [%clk 00:15:39]} dxc5 {[%emt 00:00:02] [%clk 00:15:46]} 8.
c3 {[%emt 00:00:13] [%clk 00:15:36]} O-O {[%emt 00:00:07] [%clk 00:15:48]} 9.
Qc2 {[%emt 00:00:08] [%clk 00:15:38]} Bf5 {[%emt 00:00:27] [%clk 00:15:32]} 10.
e4 {[%emt 00:00:03] [%clk 00:15:44]} Bg4 {[%emt 00:00:03] [%clk 00:15:39]} 11.
Be2 {[%emt 00:00:18] [%clk 00:15:35]} Nh5 {[%emt 00:00:07] [%clk 00:15:44]} 12.
O-O {[%emt 00:00:03] [%clk 00:15:41]} g5 {[%emt 00:00:55] [%clk 00:15:00]} 13.
Bg3 {[%emt 00:00:01] [%clk 00:15:49]} Nxg3 {[%emt 00:00:01] [%clk 00:15:08]} 14.
hxg3 {[%emt 00:00:14] [%clk 00:15:45]} Nc6 {[%emt 00:00:08] [%clk 00:15:10]} 15.
Nc4 {[%emt 00:00:07] [%clk 00:15:48]} Bh5 {[%emt 00:00:20] [%clk 00:15:01]} 16.
Nh2 {[%emt 00:00:23] [%clk 00:15:33]} Bg6 {[%emt 00:01:53] [%clk 00:13:19]} 17.
Ne3 {[%emt 00:00:26] [%clk 00:15:18]} Rc8 {[%emt 00:00:11] [%clk 00:13:17]} 18.
Rad1 {[%emt 00:00:14] [%clk 00:15:14]} Qa5 {[%emt 00:00:09] [%clk 00:13:18]} 19.
f4 {[%emt 00:01:09] [%clk 00:14:16]} b5 {[%emt 00:01:15]} 20. Bg4 {[%clk
00:13:49]} Rcd8 {[%emt 00:00:55] [%clk 00:12:04]} 21. Bf5 {[%emt 00:00:57] [%clk
00:13:02]} Rxd1 {[%emt 00:01:53] [%clk 00:10:21]} 22. Rxd1 {[%emt 00:00:07]
[%clk 00:13:05]} Bh5 {[%emt 00:00:54] [%clk 00:09:38]} 23. Bg4 {[%emt 00:02:04]
[%clk 00:11:10]} Bg6 {[%emt 00:00:02] [%clk 00:09:46]} 24. Bd7 {[%emt 00:00:40]
[%clk 00:10:41]} Nb8 {[%emt 00:02:49] [%clk 00:07:06]} 25. Nd5 {[%emt 00:00:27]
[%clk 00:10:24]} Nxd7 {[%emt 00:01:55] [%clk 00:05:21]} 26. Nxe7+ {[%emt
00:00:02] [%clk 00:10:32]} Kh8 {[%clk 00:05:31]} 27. Rxd7 {[%emt 00:01:48] [%clk
00:08:55]} Bh7 {[%emt 00:00:04] [%clk 00:05:37]} 28. f5 {[%emt 00:00:11] [%clk
00:08:54]} Qxa2 {[%clk 00:05:30]} 29. Ng4 {[%emt 00:01:22] [%clk 00:07:58]} h5
{[%emt 00:00:14] [%clk 00:05:27]} 30. f6 {[%emt 00:00:15] [%clk 00:07:52]} hxg4
{[%emt 00:00:04] [%clk 00:05:34]} 31. fxg7+ {[%emt 00:00:01] [%clk 00:08:01]}
Kxg7 {[%emt 00:00:01] [%clk 00:05:43]} 32. Qc1 {[%emt 00:01:18] [%clk 00:06:53]}
Bg6 {[%emt 00:01:12] [%clk 00:04:41]} 33. Nxg6 {[%emt 00:02:42] [%clk 00:04:21]}
Kxg6 {[%emt 00:00:02] [%clk 00:04:49]} 34. e5 {[%emt 00:00:38] [%clk 00:03:53]}
Re8 {[%emt 00:01:06] [%clk 00:03:53]} 35. Rd6+ {[%emt 00:00:23] [%clk 00:03:39]}
Re6 {[%emt 00:00:04] [%clk 00:04:00]} 36. Qc2+ {[%clk 00:03:48]} Kg7 {[%emt
00:00:06] [%clk 00:04:04]} 37. Qf5 {[%emt 00:00:18] [%clk 00:03:40]} Qxb2 {[%emt
00:01:34] [%clk 00:02:41]} 38. Qxg5+ {[%emt 00:00:20] [%clk 00:03:29]} Kh7
{[%emt 00:00:01] [%clk 00:02:50]} 39. Qf5+ {[%emt 00:00:35] [%clk 00:03:03]} Kg7
{[%emt 00:00:05] [%clk 00:02:55]} 40. Rxe6 {[%emt 00:00:07] [%clk 00:03:07]}
fxe6 {[%emt 00:00:03] [%clk 00:03:02]} 41. Qf6+ {[%emt 00:00:01] [%clk
00:03:16]} Kh7 {[%emt 00:00:02] [%clk 00:03:10]} 42. Qf7+ {[%emt 00:00:17] [%clk
00:03:09]} Kh8 {[%emt 00:00:01] [%clk 00:03:18]} 43. Qh5+ {[%emt 00:00:25] [%clk
00:02:54]} Kg7 {[%emt 00:00:09] [%clk 00:03:18]} 44. Qg5+ {[%emt 00:00:15] [%clk
00:02:50]} Kh7 {[%emt 00:00:04] [%clk 00:03:25]} 45. Qe7+ {[%emt 00:00:55] [%clk
00:02:05]} Kh8 {[%emt 00:00:01] [%clk 00:03:33]} 46. Qh4+ {[%emt 00:00:34] [%clk
00:01:41]} Kg7 {[%emt 00:00:06] [%clk 00:03:37]} 47. Qxg4+ {[%emt 00:00:07]
[%clk 00:01:44]} Kf7 {[%emt 00:00:07] [%clk 00:03:40]} 48. Qh5+ {[%emt 00:00:25]
[%clk 00:01:29]} Ke7 {[%emt 00:00:04] [%clk 00:03:47]} 49. Qh7+ {[%emt 00:00:02]
[%clk 00:01:37]} Kd8 {[%emt 00:00:16] [%clk 00:03:41]} 50. Qg8+ {[%emt 00:00:01]
[%clk 00:01:45]} Kd7 {[%emt 00:00:02] [%clk 00:03:50]} 51. Qf7+ {[%emt 00:00:01]
[%clk 00:01:54]} Kd8 {[%clk 00:03:59]} 52. Qf8+ {[%emt 00:00:07] [%clk
00:01:56]} Kc7 {[%clk 00:04:09]} 53. Qxc5+ {[%emt 00:00:09] [%clk 00:01:57]} Kb7
{[%clk 00:04:19]} 54. Qe7+ {[%emt 00:00:03] [%clk 00:02:04]} Ka6 {[%clk
00:04:28]} 55. Qxe6+ {[%emt 00:00:04] [%clk 00:02:11]} Ka5 {[%clk 00:04:38]} 56.
Qd6 {[%emt 00:01:02] [%clk 00:01:20]} Qxc3 {[%emt 00:00:07] [%clk 00:04:41]} 57.
e6 {[%emt 00:00:24] [%clk 00:01:06]} Qa1+ {[%emt 00:00:47] [%clk 00:04:03]} 58.
Kf2 {[%emt 00:00:06] [%clk 00:01:10]} Qf6+ {[%emt 00:00:01] [%clk 00:04:12]} 59.
Ke2 {[%emt 00:00:07] [%clk 00:01:13]} b4 {[%emt 00:00:59] [%clk 00:03:24]} 60.
Qc5+ {[%emt 00:00:13] [%clk 00:01:10]} Ka4 {[%emt 00:00:02] [%clk 00:03:32]} 61.
Qxa7+ {[%emt 00:00:04] [%clk 00:01:15]} Kb5 {[%emt 00:00:12] [%clk 00:03:31]}
62. Qb7+ {[%emt 00:00:18] [%clk 00:01:07]} Ka4 {[%emt 00:01:44] [%clk 00:01:56]}
63. Qd7+ {[%emt 00:00:16] [%clk 00:01:01]} Ka3 {[%emt 00:00:03] [%clk 00:02:03]}
64. e7 {[%emt 00:00:27] [%clk 00:00:43]} Qe5+ {[%emt 00:00:02] [%clk 00:02:12]}
65. Kf3 {[%clk 00:00:52]} Qf6 {[%emt 00:00:01] [%clk 00:02:21]} 66. Ke4 {[%emt
00:00:04] [%clk 00:00:58]} Qg6+ {[%emt 00:00:01] [%clk 00:02:31]} 67. Kd4 {[%emt
00:00:16] [%clk 00:00:51]} Qf6+ {[%emt 00:01:23] [%clk 00:01:18]} 68. Kc5 {[%emt
00:00:03] [%clk 00:00:58]} Qe5+ {[%emt 00:00:02] [%clk 00:01:27]} 69. Kc6 {[%emt
00:00:08] [%clk 00:00:59]} Qe4+ {[%emt 00:00:04] [%clk 00:01:34]} 70. Kb6 {[%emt
00:00:11] [%clk 00:00:58]} Qe3+ {[%emt 00:00:06] [%clk 00:01:38]} 71. Ka6 {[%emt
00:00:07] [%clk 00:01:01]} Qe2+ {[%emt 00:00:04] [%clk 00:01:43]} 72. Ka7 {[%emt
00:00:11] [%clk 00:01:00]} Qe3+ {[%emt 00:00:01] [%clk 00:01:52]} 73. Ka8 {[%emt
00:00:05] [%clk 00:01:05]} Qe4+ {[%emt 00:00:04] [%clk 00:01:58]} 74. Qb7 {[%emt
00:00:11] [%clk 00:01:05]} Qe6 {[%emt 00:00:13] [%clk 00:01:54]} 75. Ka7 {[%emt
00:00:37] [%clk 00:00:38]} Qe3+ {[%emt 00:00:01] [%clk 00:02:02]} 76. Kb8 {[%emt
00:00:08] [%clk 00:00:42]} Qxg3+ {[%emt 00:00:57] [%clk 00:01:15]} 77. Qc7
{[%emt 00:00:20] [%clk 00:00:31]} Qg8+ {[%emt 00:00:12] [%clk 00:01:13]} 78. Ka7
{[%emt 00:00:14] [%clk 00:00:27]} Qe6 {[%emt 00:00:21] [%clk 00:01:03]} 79. Qc1+
{[%emt 00:00:24] [%clk 00:00:13]} Ka4 {[%emt 00:00:19] [%clk 00:00:53]} 80. Qa1+
{[%emt 00:00:05] [%clk 00:00:18]} Kb5 {[%emt 00:00:09] [%clk 00:00:54]} 81. Qf1+
{[%emt 00:00:04] [%clk 00:00:23]} Ka5 {[%emt 00:00:01] [%clk 00:01:04]} 82. Qa1+
{[%emt 00:00:04] [%clk 00:00:28]} Kb5 {[%clk 00:01:14]} 83. Qf1+ {[%emt
00:00:05] [%clk 00:00:32]} Ka5 {[%emt 00:00:12] [%clk 00:01:13]} 84. e8=Q {[%emt
00:00:17]} Qxe8 {[%clk 00:01:22]} 85. Qa6# {[%emt 00:00:01] [%clk 00:00:35]} 1-0

[Site "Europe Echecs"]

[Event "Championnat d'Europe Rapide"]
[Date "2024.12.07"]
[White "Tsolakidou, Stavroula"]
[Black "Fressinet, Laurent"]
[WhiteElo "2451"]
[BlackElo "2588"]
[Round "3.13"]
[Result "0-1"]
[TimeControl "900+10"]

1. e4 {[%emt 00:00:02] [%clk 00:15:17]} e5 {[%emt 00:00:02] [%clk 00:15:18]} 2.
Nf3 {[%emt 00:00:02] [%clk 00:15:25]} Nc6 {[%emt 00:00:03] [%clk 00:15:26]} 3.
Bc4 {[%emt 00:00:11] [%clk 00:15:24]} Nf6 {[%emt 00:00:03] [%clk 00:15:33]} 4.
d3 {[%emt 00:00:04] [%clk 00:15:29]} Bc5 {[%emt 00:00:03] [%clk 00:15:40]} 5.
Bg5 {[%emt 00:00:05] [%clk 00:15:34]} h6 {[%emt 00:00:16] [%clk 00:15:35]} 6.
Bh4 {[%emt 00:00:03] [%clk 00:15:40]} d6 {[%emt 00:00:44] [%clk 00:15:01]} 7. c3
{[%emt 00:00:19] [%clk 00:15:31]} a6 {[%emt 00:00:10] [%clk 00:15:01]} 8. a4
{[%emt 00:00:25] [%clk 00:15:17]} Ba7 {[%emt 00:00:09] [%clk 00:15:02]} 9. Nbd2
{[%emt 00:00:30] [%clk 00:14:56]} Qe7 {[%emt 00:00:02] [%clk 00:15:09]} 10. O-O
{[%emt 00:00:22] [%clk 00:14:45]} O-O {[%emt 00:01:32] [%clk 00:13:48]} 11. Kh1
{[%emt 00:03:12] [%clk 00:11:43]} Be6 {[%emt 00:00:07] [%clk 00:13:51]} 12. b4
{[%emt 00:00:30] [%clk 00:11:23]} Bxc4 {[%emt 00:00:19] [%clk 00:13:41]} 13.
Nxc4 {[%emt 00:00:04] [%clk 00:11:29]} Qe6 {[%emt 00:00:02] [%clk 00:13:50]} 14.
b5 {[%emt 00:00:34] [%clk 00:11:05]} Nb8 {[%emt 00:03:05] [%clk 00:10:55]} 15.
Bxf6 {[%emt 00:03:00] [%clk 00:08:15]} Qxf6 {[%emt 00:00:03] [%clk 00:11:02]}
16. d4 {[%emt 00:00:02] [%clk 00:08:22]} Qe6 {[%emt 00:01:15] [%clk 00:09:57]}
17. Qd3 {[%emt 00:00:34] [%clk 00:07:58]} Nd7 {[%emt 00:00:08] [%clk 00:09:59]}
18. bxa6 {[%emt 00:00:33] [%clk 00:07:36]} bxa6 {[%emt 00:00:03] [%clk
00:10:06]} 19. Rab1 {[%emt 00:03:01] [%clk 00:04:45]} Rab8 {[%emt 00:01:03]
[%clk 00:09:13]} 20. Na5 {[%emt 00:00:51] [%clk 00:04:04]} exd4 {[%emt 00:01:28]
[%clk 00:07:53]} 21. Nc6 {[%emt 00:00:49] [%clk 00:03:26]} Nc5 {[%emt 00:02:41]
[%clk 00:05:22]} 22. Qd1 {[%emt 00:02:02] [%clk 00:01:35]} Rxb1 {[%emt 00:01:39]
[%clk 00:03:53]} 23. Qxb1 {[%emt 00:00:02] [%clk 00:01:42]} dxc3 {[%emt
00:00:23] [%clk 00:03:40]} 24. Nxa7 {[%emt 00:00:08] [%clk 00:01:44]} Qc4 {[%emt
00:00:04] [%clk 00:03:47]} 25. Rc1 {[%emt 00:01:07] [%clk 00:00:48]} Nxe4 {[%emt
00:00:08] [%clk 00:03:48]} 26. Rc2 {[%emt 00:00:41] [%clk 00:00:17]} Re8 {[%emt
00:00:16] [%clk 00:03:42]} 27. Kg1 {[%emt 00:00:13] [%clk 00:00:14]} Qc5 {[%emt
00:00:47] [%clk 00:03:04]} 28. Qb7 {[%emt 00:00:02] [%clk 00:00:23]} Nd2 {[%emt
00:01:08] [%clk 00:02:06]} 29. h4 {[%emt 00:00:21] [%clk 00:00:12]} Re2 {[%emt
00:00:20] [%clk 00:01:56]} 30. Qc8+ {[%emt 00:00:10] [%clk 00:00:12]} Kh7 {[%emt
00:00:02] [%clk 00:02:04]} 31. Kh1 {[%emt 00:00:11] [%clk 00:00:11]} Rxf2 {[%emt
00:00:30] [%clk 00:01:44]} 32. Qg4 {[%emt 00:00:06] [%clk 00:00:15]} Rf1+ {[%emt
00:00:46] [%clk 00:01:08]} 33. Kh2 {[%emt 00:00:01] [%clk 00:00:23]} Nxf3+
{[%emt 00:00:07] [%clk 00:01:12]} 34. gxf3 {[%emt 00:00:01] [%clk 00:00:31]}
Rf2+ {[%emt 00:00:46] [%clk 00:00:36]} 35. Rxf2 {[%emt 00:00:02] [%clk
00:00:40]} Qxf2+ {[%clk 00:00:45]} 36. Kh3 {[%clk 00:00:48]} Qf1+ {[%emt
00:00:02] [%clk 00:00:54]} 37. Kh2 {[%emt 00:00:02] [%clk 00:00:56]} Qe2+ {[%emt
00:00:02] [%clk 00:01:02]} 38. Kh1 {[%emt 00:00:49] [%clk 00:00:17]} Qd3 {[%emt
00:00:23] [%clk 00:00:47]} 0-1

[Site "Europe Echecs"]

[Event "Championnat d'Europe Rapide"]
[Date "2024.12.07"]
[White "Lagarde, Maxime"]
[Black "Diermair, Andreas"]
[WhiteElo "2600"]
[BlackElo "2433"]
[Round "3.14"]
[Result "1-0"]
[TimeControl "900+10"]

1. e4 {[%emt 00:00:02] [%clk 00:15:17]} c6 {[%emt 00:00:02] [%clk 00:15:19]} 2.
d4 {[%emt 00:00:09] [%clk 00:15:17]} d5 {[%emt 00:00:02] [%clk 00:15:27]} 3. e5
{[%emt 00:00:02] [%clk 00:15:26]} c5 {[%emt 00:00:04] [%clk 00:15:33]} 4. Nf3
{[%emt 00:00:19] [%clk 00:15:16]} cxd4 {[%emt 00:00:05] [%clk 00:15:38]} 5. Qxd4
{[%emt 00:00:04] [%clk 00:15:22]} Nc6 {[%emt 00:00:07] [%clk 00:15:41]} 6. Qf4
{[%emt 00:00:02] [%clk 00:15:31]} e6 {[%emt 00:00:13] [%clk 00:15:37]} 7. Nc3
{[%emt 00:00:26] [%clk 00:15:15]} Bd7 {[%emt 00:01:23] [%clk 00:14:24]} 8. a3
{[%emt 00:03:22] [%clk 00:12:03]} Nge7 {[%emt 00:00:51] [%clk 00:13:43]} 9. Bd3
{[%emt 00:00:02] [%clk 00:12:11]} Ng6 {[%emt 00:01:05] [%clk 00:12:47]} 10. Qg3
{[%emt 00:00:02] [%clk 00:12:20]} Qb8 {[%emt 00:00:32] [%clk 00:12:26]} 11. O-O
{[%emt 00:00:17] [%clk 00:12:12]} Ncxe5 {[%emt 00:01:05] [%clk 00:11:31]} 12.
Nxe5 {[%emt 00:01:58] [%clk 00:10:24]} Qxe5 {[%emt 00:00:49] [%clk 00:10:52]}
13. Bxg6 {[%emt 00:02:03] [%clk 00:08:32]} Qxg3 {[%emt 00:00:02] [%clk
00:11:00]} 14. Bxf7+ {[%emt 00:00:02] [%clk 00:08:40]} Kxf7 {[%clk 00:11:08]}
15. fxg3+ {[%emt 00:00:02] [%clk 00:08:48]} Ke8 {[%emt 00:00:55] [%clk
00:10:23]} 16. Be3 {[%emt 00:00:01] [%clk 00:08:57]} Be7 {[%emt 00:02:30] [%clk
00:08:04]} 17. Bd4 {[%emt 00:00:04] [%clk 00:09:02]} Rg8 {[%emt 00:00:13] [%clk
00:08:02]} 18. Rae1 {[%emt 00:00:26] [%clk 00:08:46]} b6 {[%emt 00:00:40] [%clk
00:07:31]} 19. Ne2 {[%emt 00:02:05] [%clk 00:06:51]} Rc8 {[%emt 00:00:38] [%clk
00:07:03]} 20. c3 {[%emt 00:00:24] [%clk 00:06:38]} Bb5 {[%emt 00:00:20] [%clk
00:06:53]} 21. Rf2 {[%emt 00:00:16] [%clk 00:06:31]} Kd7 {[%emt 00:01:23] [%clk
00:05:41]} 22. Rf7 {[%emt 00:01:28] [%clk 00:05:12]} Rcf8 {[%emt 00:02:48] [%clk
00:03:03]} 23. Rxg7 {[%emt 00:00:59] [%clk 00:04:23]} Rxg7 {[%emt 00:00:02]
[%clk 00:03:12]} 24. Bxg7 {[%emt 00:00:01] [%clk 00:04:31]} Rf7 {[%emt 00:00:03]
[%clk 00:03:19]} 25. Be5 {[%emt 00:00:35] [%clk 00:04:06]} Bxe2 {[%emt 00:01:54]
[%clk 00:01:35]} 26. Rxe2 {[%emt 00:00:02] [%clk 00:04:14]} Bc5+ {[%emt
00:00:02] [%clk 00:01:43]} 27. Bd4 {[%clk 00:04:23]} Kd6 {[%emt 00:00:08] [%clk
00:01:44]} 28. Re5 {[%emt 00:00:55] [%clk 00:03:39]} Rc7 {[%emt 00:00:18] [%clk
00:01:37]} 29. Rh5 {[%emt 00:00:07] [%clk 00:03:41]} Bxd4+ {[%emt 00:00:40]
[%clk 00:01:08]} 30. cxd4 {[%clk 00:03:49]} Rc4 {[%emt 00:00:13] [%clk
00:01:05]} 31. Rxh7 {[%emt 00:01:01] [%clk 00:02:59]} Rxd4 {[%emt 00:00:01]
[%clk 00:01:13]} 32. h4 {[%emt 00:00:09] [%clk 00:03:00]} Ke5 {[%emt 00:00:14]
[%clk 00:01:10]} 33. Rf7 {[%emt 00:00:20] [%clk 00:02:50]} Rc4 {[%emt 00:00:38]
[%clk 00:00:42]} 34. h5 {[%emt 00:00:18] [%clk 00:02:42]} d4 {[%emt 00:00:04]
[%clk 00:00:48]} 35. h6 {[%emt 00:00:19] [%clk 00:02:32]} Ke4 {[%emt 00:00:27]
[%clk 00:00:31]} 36. h7 {[%emt 00:00:16] [%clk 00:02:27]} Rc8 {[%clk 00:00:39]}
37. g4 {[%emt 00:00:36] [%clk 00:02:01]} d3 {[%emt 00:00:21] [%clk 00:00:29]}
38. Kf2 {[%emt 00:00:45] [%clk 00:01:25]} e5 {[%emt 00:00:14] [%clk 00:00:25]}
39. g5 {[%emt 00:00:05] [%clk 00:01:30]} d2 {[%emt 00:00:24] [%clk 00:00:12]}
40. Ke2 {[%emt 00:00:13] [%clk 00:01:27]} Rd8 {[%emt 00:00:01] [%clk 00:00:21]}
41. Kd1 {[%emt 00:00:02] [%clk 00:01:35]} Kd3 {[%emt 00:00:03] [%clk 00:00:23]}
42. Rf3+ {[%emt 00:00:12] [%clk 00:01:36]} Ke4 {[%emt 00:00:05] [%clk 00:00:29]}
43. g6 {[%emt 00:00:02] [%clk 00:01:44]} 1-0

[Site "Europe Echecs"]